[Event "Early-Titled-Tuesday-Blitz-March-12-2024"]
[Site "Chess.com"]
[Date "2024.03.12"]
[Round "1"]
[White "FoxOnTheRun97"]
[Black "Felix-Rose"]
[Result "1-0"]
[WhiteElo "2638"]
[BlackElo "2240"]
[TimeControl "180+1"]
[EndTime "8:08:05 PDT"]
[Termination "FoxOnTheRun97 won on time"]

1. d4 {[%clk 0:02:59.9]} 1... d5 {[%clk 0:02:54.1]} 2. c4 {[%clk 0:03:00]} 2...
e6 {[%clk 0:02:51.9]} 3. Nc3 {[%clk 0:02:59.8]} 3... Nf6 {[%clk 0:02:52.1]} 4.
cxd5 {[%clk 0:03:00.1]} 4... exd5 {[%clk 0:02:53]} 5. Bg5 {[%clk 0:03:00.4]}
5... c6 {[%clk 0:02:53.5]} 6. e3 {[%clk 0:03:00.8]} 6... Be7 {[%clk 0:02:52.6]}
7. Bd3 {[%clk 0:03:01.1]} 7... Nbd7 {[%clk 0:02:49.6]} 8. Nf3 {[%clk 0:02:58.5]}
8... h6 {[%clk 0:02:49.4]} 9. Bh4 {[%clk 0:02:58.2]} 9... Nh5 {[%clk 0:02:49.7]}
10. Bxe7 {[%clk 0:02:56.8]} 10... Qxe7 {[%clk 0:02:50.6]} 11. O-O {[%clk
0:02:56]} 11... O-O {[%clk 0:02:46.5]} 12. a3 {[%clk 0:02:37.2]} 12... a5 {[%clk
0:02:45.3]} 13. Rc1 {[%clk 0:02:35.2]} 13... Nhf6 {[%clk 0:02:43.7]} 14. Nd2
{[%clk 0:02:28]} 14... Re8 {[%clk 0:02:42.4]} 15. Na4 {[%clk 0:02:26.1]} 15...
Qd8 {[%clk 0:02:21.8]} 16. h3 {[%clk 0:02:14.8]} 16... Nb6 {[%clk 0:02:20.9]}
17. Nc5 {[%clk 0:02:13.3]} 17... Qe7 {[%clk 0:02:17.8]} 18. Bb1 {[%clk
0:02:07.1]} 18... a4 {[%clk 0:02:11.4]} 19. Nf3 {[%clk 0:02:05.2]} 19... g6
{[%clk 0:02:00]} 20. Ne5 {[%clk 0:02:02.8]} 20... Kg7 {[%clk 0:01:55.9]} 21. Qf3
{[%clk 0:01:50]} 21... Nbd7 {[%clk 0:01:52.3]} 22. Nexd7 {[%clk 0:01:45.2]}
22... Bxd7 {[%clk 0:01:51.8]} 23. Rfe1 {[%clk 0:01:34.7]} 23... Ne4 {[%clk
0:01:25.4]} 24. Bxe4 {[%clk 0:01:26.4]} 24... dxe4 {[%clk 0:01:23.4]} 25. Qg3
{[%clk 0:01:25.1]} 25... Bf5 {[%clk 0:01:12.1]} 26. Rc4 {[%clk 0:00:59]} 26...
b6 {[%clk 0:01:00.6]} 27. Nxa4 {[%clk 0:00:58.9]} 27... b5 {[%clk 0:00:57.6]}
28. Rc5 {[%clk 0:00:59.5]} 28... bxa4 {[%clk 0:00:52.3]} 29. Rxf5 {[%clk
0:00:59.3]} 29... Qb7 {[%clk 0:00:44.4]} 30. Re5 {[%clk 0:00:47]} 30... Qxb2
{[%clk 0:00:42.1]} 31. Rxe8 {[%clk 0:00:47]} 31... Rxe8 {[%clk 0:00:42]} 32. Qd6
{[%clk 0:00:47.8]} 32... Qc3 {[%clk 0:00:37.6]} 33. Rb1 {[%clk 0:00:46.3]} 33...
Re6 {[%clk 0:00:37.9]} 34. Qb4 {[%clk 0:00:43.1]} 34... Qc2 {[%clk 0:00:33.1]}
35. Qb2 {[%clk 0:00:42.4]} 35... Qd3 {[%clk 0:00:30.4]} 36. Rc1 {[%clk
0:00:41.4]} 36... Rf6 {[%clk 0:00:23.8]} 37. h4 {[%clk 0:00:29.5]} 37... h5
{[%clk 0:00:21.4]} 38. g3 {[%clk 0:00:23.8]} 38... Qb5 {[%clk 0:00:07.1]} 39.
Qc3 {[%clk 0:00:21.5]} 39... Qb3 {[%clk 0:00:03.8]} 40. Qxb3 {[%clk 0:00:19.6]}
40... axb3 {[%clk 0:00:04.7]} 41. Rb1 {[%clk 0:00:20.2]} 41... Rf5 {[%clk
0:00:05.6]} 42. Rxb3 {[%clk 0:00:20.4]} 42... Ra5 {[%clk 0:00:05.8]} 43. Rc3
{[%clk 0:00:20.4]} 43... Ra6 {[%clk 0:00:05.5]} 44. Kf1 {[%clk 0:00:20.1]} 44...
Kf6 {[%clk 0:00:05.7]} 45. Ke2 {[%clk 0:00:20.3]} 45... Kf5 {[%clk 0:00:06.3]}
46. a4 {[%clk 0:00:17.2]} 46... Rxa4 {[%clk 0:00:04.9]} 47. Rxc6 {[%clk
0:00:15.4]} 47... Ra2+ {[%clk 0:00:05.1]} 48. Kf1 {[%clk 0:00:15.9]} 48... Kg4
{[%clk 0:00:05.4]} 49. Kg2 {[%clk 0:00:11.4]} 49... Ra7 {[%clk 0:00:01.5]} 50.
Rf6 {[%clk 0:00:11]} 1-0

[Event "Early-Titled-Tuesday-Blitz-March-12-2024"]
[Site "Chess.com"]
[Date "2024.03.12"]
[Round "1"]
[White "SilverSwords13"]
[Black "TanitoluwaAps116"]
[Result "0-1"]
[WhiteElo "2466"]
[BlackElo "2834"]
[TimeControl "180+1"]
[EndTime "8:08:11 PDT"]
[Termination "TanitoluwaAps116 won by resignation"]

1. e4 {[%clk 0:02:25.9]} 1... c5 {[%clk 0:02:59.3]} 2. Nf3 {[%clk 0:02:18.2]}
2... e6 {[%clk 0:02:58]} 3. d4 {[%clk 0:02:17.2]} 3... cxd4 {[%clk 0:02:58.9]}
4. Nxd4 {[%clk 0:02:17.9]} 4... Nf6 {[%clk 0:02:58.7]} 5. Nc3 {[%clk 0:02:17.7]}
5... Nc6 {[%clk 0:02:56.9]} 6. Nxc6 {[%clk 0:02:18]} 6... bxc6 {[%clk
0:02:56.1]} 7. e5 {[%clk 0:02:18.8]} 7... Nd5 {[%clk 0:02:56.4]} 8. Ne4 {[%clk
0:02:19]} 8... Qc7 {[%clk 0:02:55.8]} 9. f4 {[%clk 0:02:19.7]} 9... Rb8 {[%clk
0:02:54.2]} 10. c4 {[%clk 0:02:18.2]} 10... Bb4+ {[%clk 0:02:41.2]} 11. Ke2
{[%clk 0:02:09.7]} 11... O-O {[%clk 0:02:37.6]} 12. cxd5 {[%clk 0:02:01]} 12...
cxd5 {[%clk 0:02:38.5]} 13. Ng5 {[%clk 0:01:51.3]} 13... f6 {[%clk 0:02:29.5]}
14. Nf3 {[%clk 0:01:50.8]} 14... fxe5 {[%clk 0:02:20.3]} 15. fxe5 {[%clk
0:01:50.2]} 15... d6 {[%clk 0:01:41.5]} 16. exd6 {[%clk 0:01:44.9]} 16... Qxd6
{[%clk 0:01:39.2]} 17. Qd4 {[%clk 0:01:24.1]} 17... e5 {[%clk 0:01:17]} 18. Qxe5
{[%clk 0:01:04.5]} 18... Ba6+ {[%clk 0:00:35.7]} 19. Kd1 {[%clk 0:00:57.7]}
19... Qxe5 {[%clk 0:00:35]} 20. Nxe5 {[%clk 0:00:56.3]} 20... Rxf1+ {[%clk
0:00:32.8]} 21. Rxf1 {[%clk 0:00:54.2]} 21... Bxf1 {[%clk 0:00:33.7]} 22. Nc6
{[%clk 0:00:38.2]} 22... Rb6 {[%clk 0:00:26.6]} 23. Nxb4 {[%clk 0:00:37.4]}
23... Rxb4 {[%clk 0:00:27.5]} 24. g3 {[%clk 0:00:35.3]} 24... Kf7 {[%clk
0:00:27]} 25. b3 {[%clk 0:00:34.1]} 25... Ke6 {[%clk 0:00:22.5]} 26. Bb2 {[%clk
0:00:33.1]} 26... g6 {[%clk 0:00:20.5]} 27. Kd2 {[%clk 0:00:32.5]} 27... Bg2
{[%clk 0:00:19.1]} 28. Re1+ {[%clk 0:00:30.9]} 28... Be4 {[%clk 0:00:19.2]} 29.
Rf1 {[%clk 0:00:30.9]} 29... Bf5 {[%clk 0:00:18.3]} 30. Re1+ {[%clk 0:00:29.2]}
30... Kd7 {[%clk 0:00:10.6]} 31. Rc1 {[%clk 0:00:19.6]} 31... Re4 {[%clk
0:00:07.3]} 32. Rc5 {[%clk 0:00:17.5]} 32... Ke6 {[%clk 0:00:05.5]} 33. Rc6+
{[%clk 0:00:16.6]} 33... Kd7 {[%clk 0:00:05.4]} 34. Ra6 {[%clk 0:00:17.3]} 34...
Bg4 {[%clk 0:00:04.3]} 35. Rxa7+ {[%clk 0:00:17.8]} 35... Kc6 {[%clk 0:00:04.3]}
36. Kd3 {[%clk 0:00:09.7]} 36... Bf5 {[%clk 0:00:04.3]} 37. Kc3 {[%clk
0:00:06.6]} 37... Re2 {[%clk 0:00:03.1]} 38. Rxh7 {[%clk 0:00:05.6]} 38... Rc2+
{[%clk 0:00:03.1]} 39. Kd4 {[%clk 0:00:05.6]} 39... Rxb2 {[%clk 0:00:03.9]} 40.
Rh8 {[%clk 0:00:02.6]} 40... Rxa2 {[%clk 0:00:03.9]} 41. h4 {[%clk 0:00:01.6]}
41... Rd2+ {[%clk 0:00:03.8]} 42. Kc3 {[%clk 0:00:01.7]} 42... Rd3+ {[%clk
0:00:04.1]} 43. Kb2 {[%clk 0:00:02.4]} 43... Rxg3 {[%clk 0:00:05]} 44. h5 {[%clk
0:00:02.4]} 44... gxh5 {[%clk 0:00:05.6]} 45. Rxh5 {[%clk 0:00:02.6]} 45... Be4
{[%clk 0:00:06.3]} 46. Rh6+ {[%clk 0:00:02.8]} 46... Kc5 {[%clk 0:00:06.8]} 47.
Rh8 {[%clk 0:00:03.2]} 47... d4 {[%clk 0:00:05]} 48. Rc8+ {[%clk 0:00:02.1]}
48... Bc6 {[%clk 0:00:05.7]} 49. b4+ {[%clk 0:00:01.2]} 49... Kb5 {[%clk
0:00:06.2]} 50. Rb8+ {[%clk 0:00:01.5]} 50... Kc4 {[%clk 0:00:06.2]} 51. Rc8
{[%clk 0:00:02.2]} 51... Rg6 {[%clk 0:00:04.1]} 52. Kc2 {[%clk 0:00:02.7]} 52...
Kxb4 {[%clk 0:00:03.7]} 53. Kd3 {[%clk 0:00:03.6]} 53... Kc5 {[%clk 0:00:04.2]}
54. Rd8 {[%clk 0:00:03.8]} 54... Rg3+ {[%clk 0:00:04.4]} 55. Kd2 {[%clk
0:00:04.1]} 55... Kc4 {[%clk 0:00:05]} 56. Rc8 {[%clk 0:00:04.2]} 56... Rg2+
{[%clk 0:00:05.9]} 57. Ke1 {[%clk 0:00:04]} 57... Kc5 {[%clk 0:00:05.5]} 58. Rd8
{[%clk 0:00:04]} 58... Bb5 {[%clk 0:00:04.9]} 59. Rc8+ {[%clk 0:00:04.3]} 59...
Kb4 {[%clk 0:00:05.1]} 60. Rd8 {[%clk 0:00:04.8]} 60... Kc3 {[%clk 0:00:05.6]}
61. Rc8+ {[%clk 0:00:05.3]} 61... Bc4 {[%clk 0:00:06.1]} 62. Ra8 {[%clk
0:00:02.7]} 62... Re2+ {[%clk 0:00:06.3]} 0-1

[Event "Early-Titled-Tuesday-Blitz-March-12-2024"]
[Site "Chess.com"]
[Date "2024.03.12"]
[Round "1"]
[White "bascheyaro"]
[Black "suspiciumchess"]
[Result "1-0"]
[WhiteElo "2774"]
[BlackElo "2416"]
[TimeControl "180+1"]
[EndTime "8:08:17 PDT"]
[Termination "bascheyaro won by resignation"]

1. d4 {[%clk 0:03:00.5]} 1... Nf6 {[%clk 0:02:46.5]} 2. c4 {[%clk 0:03:00.2]}
2... g6 {[%clk 0:02:45.2]} 3. Nf3 {[%clk 0:03:00.7]} 3... Bg7 {[%clk 0:02:45.6]}
4. Nc3 {[%clk 0:03:01.1]} 4... O-O {[%clk 0:02:44.7]} 5. Bf4 {[%clk 0:03:01.3]}
5... d6 {[%clk 0:02:44.7]} 6. h3 {[%clk 0:03:01.3]} 6... Nbd7 {[%clk 0:02:39.6]}
7. e3 {[%clk 0:03:01.6]} 7... Qe8 {[%clk 0:02:37.9]} 8. Be2 {[%clk 0:03:01.4]}
8... e5 {[%clk 0:02:38.4]} 9. Bh2 {[%clk 0:03:01.5]} 9... h6 {[%clk 0:02:32.3]}
10. O-O {[%clk 0:03:00.8]} 10... Qe7 {[%clk 0:02:31.8]} 11. Qc2 {[%clk
0:02:51.4]} 11... c6 {[%clk 0:02:31.4]} 12. dxe5 {[%clk 0:02:51.2]} 12... dxe5
{[%clk 0:02:25.9]} 13. Rad1 {[%clk 0:02:50.8]} 13... Nh7 {[%clk 0:02:09.5]} 14.
Ne4 {[%clk 0:02:40.2]} 14... Nc5 {[%clk 0:01:52.2]} 15. Nd6 {[%clk 0:02:30.8]}
15... Rd8 {[%clk 0:01:46.9]} 16. Nxc8 {[%clk 0:02:28.3]} 16... Raxc8 {[%clk
0:01:47.8]} 17. b4 {[%clk 0:02:25.8]} 17... Ne6 {[%clk 0:01:43.2]} 18. c5 {[%clk
0:02:25.5]} 18... Nc7 {[%clk 0:01:29.6]} 19. Bc4 {[%clk 0:02:24.5]} 19... Ng5
{[%clk 0:01:29.8]} 20. Qxg6 {[%clk 0:02:18]} 20... Nxf3+ {[%clk 0:01:18.7]} 21.
gxf3 {[%clk 0:02:18.9]} 21... Nd5 {[%clk 0:01:19.3]} 22. Bxd5 {[%clk 0:02:00.4]}
22... cxd5 {[%clk 0:01:16.4]} 23. Qf5 {[%clk 0:02:00.1]} 23... Qg5+ {[%clk
0:01:12.4]} 24. Qxg5 {[%clk 0:01:58.2]} 24... hxg5 {[%clk 0:01:13.3]} 25. Rd3
{[%clk 0:01:47.8]} 25... Rd7 {[%clk 0:01:06.9]} 26. Rfd1 {[%clk 0:01:45.3]}
26... Rcd8 {[%clk 0:01:06.7]} 27. Kf1 {[%clk 0:01:41.7]} 27... Kf8 {[%clk
0:01:06]} 28. Ke2 {[%clk 0:01:38.4]} 28... Ke7 {[%clk 0:01:05.6]} 29. a4 {[%clk
0:01:35.3]} 29... Ke6 {[%clk 0:01:05.2]} 30. Rg1 {[%clk 0:01:25.7]} 30... Bf6
{[%clk 0:01:04.3]} 31. Rc1 {[%clk 0:01:18]} 31... Rh8 {[%clk 0:00:59.1]} 32. c6
{[%clk 0:01:03.1]} 32... bxc6 {[%clk 0:00:48.7]} 33. Rxc6+ {[%clk 0:01:02.4]}
33... Rd6 {[%clk 0:00:49.4]} 34. Rxd6+ {[%clk 0:01:01.7]} 34... Kxd6 {[%clk
0:00:50.3]} 35. e4 {[%clk 0:01:02.3]} 35... d4 {[%clk 0:00:50.1]} 36. Rxd4+
{[%clk 0:01:02.7]} 36... Ke6 {[%clk 0:00:45.3]} 37. Rc4 {[%clk 0:01:02.1]} 37...
Rxh3 {[%clk 0:00:41.4]} 38. Rc6+ {[%clk 0:01:02.1]} 38... Ke7 {[%clk 0:00:37.7]}
39. Bg3 {[%clk 0:01:02.2]} 39... Rh8 {[%clk 0:00:33.7]} 40. Rc7+ {[%clk
0:01:02.3]} 40... Ke6 {[%clk 0:00:33.9]} 41. Rxa7 {[%clk 0:01:02.5]} 41... Rb8
{[%clk 0:00:31.7]} 42. b5 {[%clk 0:01:02.5]} 42... Bd8 {[%clk 0:00:31.2]} 43.
Kd3 {[%clk 0:00:44.9]} 43... Rb6 {[%clk 0:00:22.6]} 44. Kc4 {[%clk 0:00:43.6]}
44... Rd6 {[%clk 0:00:22.7]} 45. a5 {[%clk 0:00:36.6]} 45... f6 {[%clk
0:00:22.1]} 46. Kc5 {[%clk 0:00:24.6]} 46... Be7 {[%clk 0:00:16.5]} 47. b6
{[%clk 0:00:24.5]} 47... Rd3+ {[%clk 0:00:12.3]} 48. Rxe7+ {[%clk 0:00:13.4]}
48... Kxe7 {[%clk 0:00:11.6]} 49. a6 {[%clk 0:00:13.9]} 49... Kd7 {[%clk
0:00:10.8]} 50. a7 {[%clk 0:00:14.1]} 50... Rc3+ {[%clk 0:00:08.7]} 51. Kd5
{[%clk 0:00:13.1]} 51... Ra3 {[%clk 0:00:05.9]} 52. b7 {[%clk 0:00:12.4]} 52...
Ra5+ {[%clk 0:00:05.3]} 53. Kc4 {[%clk 0:00:12.5]} 53... Rxa7 {[%clk 0:00:03.8]}
54. b8=Q {[%clk 0:00:12.5]} 54... Rc7+ {[%clk 0:00:04.6]} 55. Qxc7+ {[%clk
0:00:12.5]} 55... Kxc7 {[%clk 0:00:04.9]} 56. Kd5 {[%clk 0:00:12.8]} 56... Kd7
{[%clk 0:00:05.1]} 57. Bxe5 {[%clk 0:00:13.7]} 57... fxe5 {[%clk 0:00:03]} 58.
Kxe5 {[%clk 0:00:14.6]} 1-0

[Event "Early-Titled-Tuesday-Blitz-March-12-2024"]
[Site "Chess.com"]
[Date "2024.03.12"]
[Round "1"]
[White "GeorgiosSouleidis"]
[Black "martinmena"]
[Result "1-0"]
[WhiteElo "2658"]
[BlackElo "2273"]
[TimeControl "180+1"]
[EndTime "8:08:17 PDT"]
[Termination "GeorgiosSouleidis won by resignation"]

1. e4 {[%clk 0:02:59.7]} 1... c6 {[%clk 0:02:53.5]} 2. Nc3 {[%clk 0:02:59.1]}
2... d5 {[%clk 0:02:54.4]} 3. Nf3 {[%clk 0:02:59.5]} 3... Bg4 {[%clk 0:02:51.3]}
4. h3 {[%clk 0:02:58.8]} 4... Bxf3 {[%clk 0:02:50]} 5. Qxf3 {[%clk 0:02:59.7]}
5... e6 {[%clk 0:02:48]} 6. d4 {[%clk 0:02:59.7]} 6... Nf6 {[%clk 0:02:47]} 7.
a3 {[%clk 0:02:45.2]} 7... dxe4 {[%clk 0:02:29.7]} 8. Qe3 {[%clk 0:02:44.8]}
8... Nd5 {[%clk 0:02:22.2]} 9. Qxe4 {[%clk 0:02:41.8]} 9... Nxc3 {[%clk
0:02:21.3]} 10. bxc3 {[%clk 0:02:42.7]} 10... Nd7 {[%clk 0:02:16.6]} 11. Bd3
{[%clk 0:02:42.7]} 11... Nf6 {[%clk 0:02:16.5]} 12. Qh4 {[%clk 0:02:42.1]} 12...
Be7 {[%clk 0:02:15.7]} 13. Qg3 {[%clk 0:02:42.1]} 13... O-O {[%clk 0:02:04.1]}
14. Rb1 {[%clk 0:02:39.6]} 14... b6 {[%clk 0:01:44.6]} 15. Bh6 {[%clk 0:02:25]}
15... Ne8 {[%clk 0:01:25.1]} 16. O-O {[%clk 0:02:22.3]} 16... Bf6 {[%clk
0:01:24]} 17. Bf4 {[%clk 0:02:08.4]} 17... g6 {[%clk 0:01:14.2]} 18. Qf3 {[%clk
0:01:59.8]} 18... Qd7 {[%clk 0:01:10.9]} 19. Be4 {[%clk 0:01:53.3]} 19... Rc8
{[%clk 0:01:11]} 20. a4 {[%clk 0:01:52.1]} 20... Bg7 {[%clk 0:01:04.8]} 21. a5
{[%clk 0:01:50.2]} 21... b5 {[%clk 0:01:04.2]} 22. Be5 {[%clk 0:01:30.6]} 22...
Nd6 {[%clk 0:00:56.3]} 23. Bd3 {[%clk 0:01:24.1]} 23... Bxe5 {[%clk 0:00:46.2]}
24. dxe5 {[%clk 0:01:24.2]} 24... Nb7 {[%clk 0:00:27]} 25. Ra1 {[%clk
0:01:07.1]} 25... Nc5 {[%clk 0:00:26.2]} 26. h4 {[%clk 0:00:58.9]} 26... Qd5
{[%clk 0:00:19.2]} 27. Qe3 {[%clk 0:00:52.3]} 27... Nxd3 {[%clk 0:00:18.7]} 28.
cxd3 {[%clk 0:00:52.3]} 28... c5 {[%clk 0:00:18.6]} 29. Rfd1 {[%clk 0:00:45.7]}
29... a6 {[%clk 0:00:18.5]} 30. h5 {[%clk 0:00:44.8]} 30... Rfd8 {[%clk
0:00:16.9]} 31. Rac1 {[%clk 0:00:40.8]} 31... f5 {[%clk 0:00:16.3]} 32. exf6
{[%clk 0:00:35.7]} 32... Qf5 {[%clk 0:00:16.9]} 33. hxg6 {[%clk 0:00:33.6]}
33... hxg6 {[%clk 0:00:16]} 34. Re1 {[%clk 0:00:29]} 34... Qxf6 {[%clk
0:00:13.8]} 35. Qxe6+ {[%clk 0:00:27.7]} 35... Kg7 {[%clk 0:00:14.1]} 36. Qe7+
{[%clk 0:00:12.7]} 36... Qf7 {[%clk 0:00:13]} 37. Qe5+ {[%clk 0:00:12.5]} 37...
Qf6 {[%clk 0:00:12]} 38. Qg3 {[%clk 0:00:11.4]} 38... Re8 {[%clk 0:00:10.5]} 39.
Rxe8 {[%clk 0:00:09.9]} 39... Rxe8 {[%clk 0:00:11.4]} 40. Qc7+ {[%clk
0:00:10.2]} 40... Qf7 {[%clk 0:00:11.3]} 41. Qxc5 {[%clk 0:00:10]} 41... Re2
{[%clk 0:00:10.3]} 42. Qd4+ {[%clk 0:00:10]} 42... Kg8 {[%clk 0:00:10.2]} 43. c4
{[%clk 0:00:09.3]} 43... b4 {[%clk 0:00:08.7]} 44. c5 {[%clk 0:00:09.1]} 44...
b3 {[%clk 0:00:09.2]} 45. c6 {[%clk 0:00:08.8]} 45... b2 {[%clk 0:00:09.7]} 46.
Rb1 {[%clk 0:00:09.1]} 46... Qc7 {[%clk 0:00:09.7]} 47. Rxb2 {[%clk 0:00:08.1]}
47... Rxb2 {[%clk 0:00:09.7]} 48. Qxb2 {[%clk 0:00:08]} 48... Qxc6 {[%clk
0:00:10.4]} 49. Qb8+ {[%clk 0:00:08.4]} 49... Kg7 {[%clk 0:00:10]} 50. Qa7+
{[%clk 0:00:08.6]} 50... Kh6 {[%clk 0:00:08.8]} 51. Qe3+ {[%clk 0:00:08.8]}
51... g5 {[%clk 0:00:07.9]} 52. Qb6 {[%clk 0:00:08.6]} 52... Qg6 {[%clk
0:00:07.7]} 53. d4 {[%clk 0:00:07.8]} 53... Kg7 {[%clk 0:00:07.3]} 54. Qxg6+
{[%clk 0:00:07.9]} 54... Kxg6 {[%clk 0:00:07.7]} 55. Kf1 {[%clk 0:00:08]} 55...
Kf5 {[%clk 0:00:08.4]} 56. f3 {[%clk 0:00:06.8]} 56... g4 {[%clk 0:00:06.9]} 57.
fxg4+ {[%clk 0:00:06.4]} 57... Kxg4 {[%clk 0:00:06.8]} 58. Ke2 {[%clk
0:00:06.9]} 58... Kg3 {[%clk 0:00:07.5]} 59. d5 {[%clk 0:00:06.9]} 59... Kxg2
{[%clk 0:00:08.4]} 60. d6 {[%clk 0:00:07.5]} 60... Kg3 {[%clk 0:00:07.4]} 61. d7
{[%clk 0:00:07.9]} 61... Kf4 {[%clk 0:00:08.3]} 62. d8=Q {[%clk 0:00:07.8]}
62... Ke5 {[%clk 0:00:09.2]} 63. Qb6 {[%clk 0:00:07.8]} 63... Kd5 {[%clk
0:00:10.1]} 64. Kd2 {[%clk 0:00:08.3]} 1-0

[Event "Early-Titled-Tuesday-Blitz-March-12-2024"]
[Site "Chess.com"]
[Date "2024.03.12"]
[Round "1"]
[White "Misterfox120"]
[Black "CSB7"]
[Result "0-1"]
[WhiteElo "2419"]
[BlackElo "2774"]
[TimeControl "180+1"]
[EndTime "8:08:20 PDT"]
[Termination "CSB7 won by resignation"]

1. d4 {[%clk 0:03:00.9]} 1... Nf6 {[%clk 0:02:59.6]} 2. Bf4 {[%clk 0:03:00.1]}
2... c5 {[%clk 0:02:53.9]} 3. e3 {[%clk 0:02:59.7]} 3... d5 {[%clk 0:02:49.9]}
4. Nf3 {[%clk 0:02:59.2]} 4... Nc6 {[%clk 0:02:49.5]} 5. Nbd2 {[%clk 0:02:59.3]}
5... e6 {[%clk 0:02:39.5]} 6. c3 {[%clk 0:02:54.7]} 6... cxd4 {[%clk 0:02:39]}
7. exd4 {[%clk 0:02:54.6]} 7... Nh5 {[%clk 0:02:38.9]} 8. Be3 {[%clk 0:02:54.6]}
8... Bd6 {[%clk 0:02:38.2]} 9. Ne5 {[%clk 0:02:53.9]} 9... g6 {[%clk 0:02:36.8]}
10. g4 {[%clk 0:02:42.6]} 10... Ng7 {[%clk 0:02:35.5]} 11. h4 {[%clk 0:02:42.7]}
11... h5 {[%clk 0:02:22.4]} 12. Bg5 {[%clk 0:02:39]} 12... Qc7 {[%clk
0:01:56.6]} 13. Bf6 {[%clk 0:02:27.9]} 13... Kf8 {[%clk 0:01:56.4]} 14. f4
{[%clk 0:02:13.7]} 14... Rh7 {[%clk 0:01:13.4]} 15. Bxg7+ {[%clk 0:02:03.4]}
15... Kxg7 {[%clk 0:01:10.3]} 16. gxh5 {[%clk 0:02:03.3]} 16... Rxh5 {[%clk
0:01:10.1]} 17. Be2 {[%clk 0:02:03.2]} 17... Rh6 {[%clk 0:00:58.3]} 18. h5
{[%clk 0:01:58.7]} 18... f6 {[%clk 0:00:41.5]} 19. Nxg6 {[%clk 0:01:51.2]} 19...
Bxf4 {[%clk 0:00:41.3]} 20. Nxf4 {[%clk 0:01:49.7]} 20... Qxf4 {[%clk
0:00:42.2]} 21. Rg1+ {[%clk 0:01:20.4]} 21... Kf7 {[%clk 0:00:26]} 22. Nf3
{[%clk 0:00:35.4]} 22... Bd7 {[%clk 0:00:23.8]} 23. Qd2 {[%clk 0:00:33.8]} 23...
Qxd2+ {[%clk 0:00:23.4]} 24. Kxd2 {[%clk 0:00:34.7]} 24... Rxh5 {[%clk
0:00:15.1]} 25. Ne5+ {[%clk 0:00:33.9]} 25... Rxe5 {[%clk 0:00:15.1]} 26. dxe5
{[%clk 0:00:34]} 26... Nxe5 {[%clk 0:00:13.9]} 27. Rh1 {[%clk 0:00:21.6]} 27...
Ke7 {[%clk 0:00:13.1]} 28. Rag1 {[%clk 0:00:20.2]} 28... Kd6 {[%clk 0:00:09.7]}
29. Rh6 {[%clk 0:00:18.6]} 29... Rf8 {[%clk 0:00:09.8]} 30. Rg7 {[%clk
0:00:17.7]} 30... Bc6 {[%clk 0:00:09.4]} 31. Rh2 {[%clk 0:00:10.7]} 31... a5
{[%clk 0:00:09.2]} 32. Rh3 {[%clk 0:00:08.4]} 32... Nd7 {[%clk 0:00:09.6]} 33.
Rhg3 {[%clk 0:00:07.2]} 33... Nc5 {[%clk 0:00:09.8]} 34. Rg8 {[%clk 0:00:06.1]}
34... Ne4+ {[%clk 0:00:08.7]} 35. Ke3 {[%clk 0:00:06.6]} 35... Nxg3 {[%clk
0:00:05.3]} 36. Rxf8 {[%clk 0:00:06.4]} 36... Nf5+ {[%clk 0:00:05.6]} 37. Kd2
{[%clk 0:00:07]} 37... d4 {[%clk 0:00:06.2]} 38. cxd4 {[%clk 0:00:05.9]} 38...
Ke7 {[%clk 0:00:06.6]} 39. Rh8 {[%clk 0:00:03.4]} 39... Nxd4 {[%clk 0:00:06.8]}
40. Bd3 {[%clk 0:00:04.1]} 40... Kd6 {[%clk 0:00:06.2]} 41. Rd8+ {[%clk
0:00:04.3]} 41... Kc5 {[%clk 0:00:06.2]} 42. Rh8 {[%clk 0:00:04.5]} 42... f5
{[%clk 0:00:05.1]} 43. a3 {[%clk 0:00:04.5]} 43... Kd6 {[%clk 0:00:05]} 44. Rh6
{[%clk 0:00:03.7]} 44... Ke5 {[%clk 0:00:04.9]} 45. Ke3 {[%clk 0:00:01.5]} 45...
Nb3 {[%clk 0:00:05.1]} 46. Kf2 {[%clk 0:00:01.2]} 46... Nc5 {[%clk 0:00:05.5]}
47. Ke3 {[%clk 0:00:01.4]} 47... Bd5 {[%clk 0:00:03.5]} 48. Kd2 {[%clk
0:00:01.5]} 48... Kd4 {[%clk 0:00:03.1]} 49. Bc2 {[%clk 0:00:01.6]} 49... f4
{[%clk 0:00:02.1]} 50. Rh4 {[%clk 0:00:02.5]} 50... e5 {[%clk 0:00:02.2]} 51.
Ke2 {[%clk 0:00:02.4]} 51... Be4 {[%clk 0:00:02.6]} 52. Bxe4 {[%clk 0:00:02.4]}
52... Kxe4 {[%clk 0:00:03.5]} 53. Rh7 {[%clk 0:00:02.4]} 53... Ne6 {[%clk
0:00:03.8]} 54. Rxb7 {[%clk 0:00:02.4]} 54... Nd4+ {[%clk 0:00:04.6]} 55. Kf2
{[%clk 0:00:02.8]} 55... Kd3 {[%clk 0:00:05.2]} 56. Rb5 {[%clk 0:00:02.9]} 56...
Nxb5 {[%clk 0:00:04.7]} 0-1